bitfinex-derivatives/quotes_SOLF0:USTF0_20250817
["timestamp","ask_amount","ask_price","bid_price","bid_amount"]
[1755461039424,3.95030141,191.42,191.35,2.93]
[1755461039726,6.00030141,191.41,191.35,2.93]
[1755461039927,2.05,191.41,191.35,2.93]
[1755461042833,2.05,191.41,191.34,2.93]
[1755461045037,3.95510695,191.4,191.32,2.45675503]
[1755461045237,2.05,191.41,191.33,2.93]
[1755461045433,2.05,191.39,191.33,2.93]
[1755461045631,3.95533909,191.38,191.33,2.93]
[1755461045834,2.05,191.39,191.33,2.93]
[1755461046034,3.95533362,191.38,191.29,2.45675503]
[1755461046340,2.05,191.36,191.34,2.93]
[1755461046532,2.05,191.35,191.34,2.93]
[1755461051634,2.45675503,191.42,191.34,2.93]
[1755461051838,2.05,191.4,191.34,2.93]
[1755461052039,2.05,191.38,191.35,2.93]
[1755461052340,2.05,191.36,191.35,2.93]
[1755461053546,2.05,191.36,191.3,2.93]
[1755461058149,2.05,191.36,191.27,2.87]
[1755461058449,3.95188032,191.35,191.27,2.87]
[1755461058652,2.05,191.34,191.27,2.87]
[1755461067055,2.05,191.32,191.27,2.87]
[1755461067248,3.95948127,191.31,191.27,2.87]
[1755461067553,2.05,191.3,191.27,2.87]
[1755461067745,2.05,191.3,191.2,2.45675503]
[1755461067946,2.05,191.3,191.26,2.87]
[1755461068148,2.05,191.28,191.21,2.87]
[1755461068452,3.95862611,191.27,191.21,2.87]
[1755461068649,2.05,191.26,191.21,2.87]
[1755461069854,2.05,191.24,191.16,2.87]
[1755461070053,2.05,191.22,191.16,2.87]
[1755461071357,2.05,191.2,191.17,2.87]
[1755461071560,2.05,191.2,191.1,2.45675503]
[1755461071752,2.05,191.2,191.16,2.87]
[1755461072061,2.05,191.2,191.11,2.87]
[1755461072557,11.01282144,191.19,191.11,2.87]
[1755461072759,2.05,191.17,190.97,351.18]
[1755461073057,2.05,191.15,191.03,2.87]
[1755461073360,2.05,191.13,191.03,2.87]
[1755461077460,2.05,191.11,191.03,2.87]
[1755461077664,2.45675503,191.09,191.03,2.87]
[1755461077962,2.05,191.08,191.03,2.87]
[1755461079165,2.05,191.08,191.04,2.87]
[1755461079760,2.05,191.08,190.97,2.87]
[1755461083467,2.05,191.16,191.02,2.45675503]
[1755461083666,2.05,191.14,191.05,2.45675503]
[1755461083970,2.05,191.14,191.06,2.87]
[1755461092667,2.45675503,191.18,191.02,2.86]
[1755461092668,2.06,191.17,191.02,2.86]
[1755461092862,2.06,191.15,191.05,2.86]
[1755461094068,2.06,191.15,191.05,5.31675503]
[1755461094371,2.06,191.13,191.06,2.86]
[1755461094870,2.06,191.11,191.06,2.86]
[1755461095065,2.06,191.11,191.07,2.86]
[1755461095272,2.06,191.11,191.03,2.45675503]
[1755461095570,2.06,191.11,191.08,2.86]
[1755461095867,2.06,191.14,191.08,2.86]
[1755461096061,2.06,191.12,191.04,2.86]
[1755461097372,4.5894036,191.11,191.04,2.86]
[1755461097570,2.06,191.1,191.04,2.86]
[1755461100173,2.45675503,191.15,191.04,2.86]
[1755461100374,2.06,191.12,191.04,2.86]
[1755461100575,2.06,191.14,191.04,2.86]
[1755461100776,2.06,191.12,191.04,2.86]
[1755461101072,2.06,191.1,191.04,2.86]
[1755461104478,2.06,191.12,191.04,2.86]
[1755461104772,8.53499596,191.11,191.04,2.86]
[1755461104976,2.06,191.12,191.04,5.31675503]
[1755461105179,3.93325257,191.11,191.05,2.86]
[1755461105365,2.06,191.14,191.05,2.86]
[1755461105570,10.60008198,191.13,191.05,2.86]
[1755461105773,8.54008198,191.12,191.05,2.86]
[1755461106078,2.06,191.13,191.05,2.86]
[1755461106279,8.54142681,191.12,191.05,2.86]
[1755461106479,8.54142681,191.11,191.05,2.86]
[1755461106680,2.06,191.13,191.05,2.86]
[1755461106879,8.54701693,191.12,191.05,2.86]
[1755461107078,8.54701693,191.11,191.05,2.86]
[1755461107280,2.06,191.13,191.05,2.86]
[1755461107480,8.55356735,191.12,191.05,2.86]
[1755461107677,8.55356735,191.11,191.05,2.86]
[1755461107882,2.06,191.16,191.08,2.86]
[1755461108180,10.61300389,191.15,191.08,2.86]
[1755461108381,8.55300389,191.14,191.08,2.86]
[1755461108581,8.55300389,191.13,191.08,2.86]
[1755461108776,8.55300389,191.12,191.08,2.86]
[1755461108977,2.06,191.15,191.08,2.86]
[1755461109286,2.06,191.13,191.08,2.86]
[1755461109479,10.62095755,191.12,191.08,2.86]
[1755461109674,8.56095755,191.11,191.08,2.86]
[1755461109871,21.46718832,191.18,191.08,2.86]
[1755461110072,2.06,191.16,191.08,2.86]
[1755461110278,2.06,191.14,191.08,2.86]
[1755461110479,2.06,191.12,191.08,2.86]
[1755461110676,10.62931173,191.11,191.08,2.86]
[1755461110882,8.56931173,191.1,191.08,2.86]
[1755461111072,2.06,191.14,191.08,2.86]
[1755461111278,8.58646553,191.13,191.08,2.86]
[1755461111479,8.58646553,191.12,191.08,2.86]
[1755461111678,8.58646553,191.11,191.08,2.86]
[1755461111880,8.58646553,191.1,191.08,2.86]
[1755461112081,3.96457679,191.09,191.08,2.86]
[1755461112986,2.06,191.14,191.08,2.86]
[1755461113188,8.60381957,191.13,191.08,2.86]
[1755461113389,8.60381957,191.12,191.08,2.86]
[1755461113577,8.60381957,191.11,191.08,2.86]
[1755461113782,8.60381957,191.1,191.08,2.86]
[1755461113985,3.9647254,191.09,191.08,2.86]
[1755461114484,2.06,191.16,191.08,8.0901]
[1755461114791,7.72003514,191.15,191.1,2.86]
[1755461114985,4.65009535,191.14,191.1,2.86]
[1755461115185,5.77718832,191.17,191.1,2.86]
[1755461115383,4.65009396,191.16,191.1,2.86]
[1755461115581,3.07,191.14,191.1,2.86]
[1755461115888,4.65009396,191.13,191.1,2.86]
[1755461116087,3.07,191.17,191.1,2.86]
[1755461116296,4.58426608,191.16,191.13,2.86]
[1755461116590,3.07,191.22,191.15,2.45675503]
[1755461116787,4.58672816,191.21,191.16,8.088]
[1755461116991,4.58672816,191.2,191.18,2.45675503]
[1755461117191,5.77718832,191.25,191.19,2.86]
[1755461117393,3.07,191.23,191.19,2.86]
[1755461118185,3.02,191.22,191.19,2.86]
[1755461123597,3.02,191.22,191.17,2.45675503]
[1755461123800,3.02,191.22,191.17,5.32675503]
[1755461124097,3.02,191.22,191.18,2.87]
[1755461124498,3.02,191.22,191.16,2.87]
[1755461127697,3.02,191.22,191.17,2.45675503]
[1755461127894,3.02,191.22,191.18,2.87]
[1755461130212,3.02,191.22,191.16,5.228]
[1755461130213,3.02,191.28,191.21,2.87]
[1755461131412,0.0355144,191.26,191.21,2.87]
[1755461131808,3.02,191.24,191.21,2.87]
[1755461132109,3.02,191.25,191.18,2.87]
[1755461133013,3.02,191.25,191.18,5.32675503]
[1755461133205,3.02,191.25,191.19,2.87]
[1755461134606,3.02,191.25,191.14,5.32675503]
[1755461134914,3.9247756,191.24,191.15,2.87]
[1755461135214,3.02,191.19,191.12,2.87]
[1755461152518,0.03687295,191.21,191.15,2.93]
[1755461152716,0.03687295,191.21,191.07,2.45675503]
[1755461152717,0.03687295,191.21,191.17,2.45675503]
[1755461152914,2.87,191.24,191.18,2.93]
[1755461153320,0.03541179,191.21,191.18,2.93]
[1755461153524,0.03541179,191.21,191.18,8.1573]
[1755461153718,0.03541179,191.21,191.19,2.93]
[1755461157119,0.03541179,191.21,191.07,12.91755503]
[1755461157120,0.03541179,191.21,191.2,5.38675503]
[1755461157520,2.87,191.26,191.2,2.45675503]
[1755461157826,3.93870746,191.25,191.21,2.93]
[1755461158025,2.87,191.26,191.21,2.93]
[1755461158225,6.84257834,191.25,191.21,2.93]
[1755461158427,2.90351916,191.25,191.21,2.93]
[1755461158825,2.87,191.24,191.21,2.93]
[1755461160926,0.03351916,191.25,191.21,2.93]
[1755461161128,3.93963544,191.24,191.15,2.45675503]
[1755461161333,2.87,191.22,191.16,2.93]
[1755461161828,0.03555413,191.21,191.16,2.93]
[1755461162331,2.87,191.19,191.16,2.93]
[1755461162732,2.87,191.2,191.16,2.93]
[1755461164937,2.90555413,191.21,191.16,2.93]
[1755461165128,0.03555413,191.21,191.16,2.93]
[1755461165327,2.87,191.2,191.16,2.93]
[1755461165532,2.87,191.2,191.14,2.93]
[1755461165932,3.94217824,191.19,191.14,2.93]
[1755461166135,2.87,191.2,191.14,2.93]
[1755461166432,2.87,191.18,191.15,2.93]
[1755461166632,2.87,191.18,191.1,2.93]
[1755461166935,2.87,191.16,191.1,2.93]
[1755461167434,3.94081878,191.15,191.08,2.93]
[1755461167636,2.87,191.14,191.08,2.93]
[1755461168839,0.03659632,191.13,191.08,2.93]
[1755461169029,2.87,191.12,191.08,2.93]
[1755461170030,2.87,191.12,191.04,2.45675503]
[1755461170229,2.87,191.12,191.09,2.93]
[1755461173537,2.87,191.12,191.04,2.45675503]
[1755461173737,2.87,191.12,191.1,2.93]
[1755461174233,2.90659632,191.13,191.07,2.45675503]
[1755461174430,0.03659632,191.13,191.08,2.93]
[1755461174631,2.87,191.15,191.08,2.93]
[1755461175138,0.03340128,191.12,191.08,2.93]
[1755461176241,0.03340128,191.12,191.1,2.45675503]
[1755461176440,0.03340128,191.12,191.11,2.93]
[1755461186048,2.85340128,191.12,191.11,2.93]
[1755461191151,0.03340128,191.12,191.09,3.07]
[1755461191651,2.85340128,191.12,191.09,3.07]
[1755461194655,0.03340128,191.12,191.09,3.07]
[1755461196355,0.03340128,191.12,191.1,3.07]
[1755461197655,2.85340128,191.12,191.1,3.07]
[1755461197853,2.82,191.11,191.1,3.07]
[1755461198051,2.82,191.23,191.11,3.07]
[1755461198248,2.82,191.23,191.18,3.07]
[1755461198450,2.82,191.29,191.2,2.45675503]
[1755461198650,2.82,191.27,191.21,5.2264]
[1755461198856,2.82,191.25,191.22,3.07]
[1755461199356,2.82,191.25,191.22,3.10534505]
[1755461201952,23.92394335,191.33,191.22,3.10534505]
[1755461202155,2.82,191.24,191.22,3.10534505]
[1755461202559,2.45675503,191.3,191.22,0.03534505]
[1755461202754,15.69,191.31,191.22,0.03534505]
[1755461202755,2.45675503,191.27,191.22,0.03534505]
[1755461202955,11.39055625,191.26,191.22,0.03534505]
[1755461203153,8.57055625,191.25,191.22,0.03534505]
[1755461203357,3.94011321,191.24,191.22,0.03534505]
[1755461203552,3.94011321,191.23,191.22,0.03534505]
[1755461203753,6.76011321,191.23,191.22,0.03534505]
[1755461203959,2.82,191.22,191.15,3.07]
[1755461204264,2.82,191.2,191.11,3.07]
[1755461205556,0.03475522,191.17,191.13,2.45675503]
[1755461205761,0.03475522,191.17,191.14,3.07]
[1755461206060,2.45675503,191.25,191.14,3.07]
[1755461206261,2.85537934,191.17,191.14,3.07]
[1755461206657,2.45675503,191.25,191.14,3.07]
[1755461206860,2.82,191.23,191.14,3.07]
[1755461207059,2.82,191.21,191.14,3.07]
[1755461207258,3.94108162,191.2,191.14,3.07]
[1755461207457,2.45675503,191.25,191.14,3.07]
[1755461207652,2.82,191.18,191.14,3.07]
[1755461210661,2.83,191.2,191.14,3.07]
[1755461212561,2.86357343,191.21,191.17,3.01]
[1755461213064,2.83,191.21,191.17,3.01]
[1755461213670,2.86639075,191.21,191.17,3.01]
[1755461216471,2.83,191.2,191.17,3.01]
[1755461217368,0.03639075,191.21,191.17,3.01]
[1755461217568,2.83,191.19,191.17,3.01]
[1755461218773,2.83,191.19,191.16,2.45675503]
[1755461218774,2.83,191.19,191.18,3.01]
[1755461219270,2.83,191.2,191.18,3.01]
[1755461221171,0.03639075,191.21,191.18,3.01]
[1755461221374,2.86639075,191.21,191.18,3.01]
[1755461223772,0.03639075,191.21,191.2,3.01]
[1755461224192,2.83,191.23,191.2,3.01]
[1755461224476,0.03435644,191.22,191.2,3.01]
[1755461224671,2.83,191.25,191.22,3.01]
[1755461224875,121.87003038,191.33,191.22,3.01]
[1755461225073,8.5731076,191.32,191.22,3.01]
[1755461225273,2.83,191.25,191.22,3.01]
[1755461226079,2.83,191.25,191.22,3.04905956]
[1755461226576,2.83,191.32,191.23,3.01]
[1755461226776,8.56969292,191.31,191.23,3.01]
[1755461226974,2.83,191.29,191.23,3.01]
[1755461227373,2.83,191.29,191.25,0.04010685]
[1755461227676,2.83,191.28,191.27,3.01]
[1755461227875,2.83,191.28,191.25,5.50686188]
[1755461228077,2.83,191.28,191.25,0.04010685]
[1755461228381,2.83,191.26,191.2,3.01]
[1755461228582,2.83,191.27,191.23,3.01]
[1755461228775,2.83,191.27,191.22,2.45675503]
[1755461228978,2.83,191.27,191.22,5.46675503]
[1755461229575,0.03833464,191.26,191.22,5.46675503]
[1755461229791,0.03833464,191.26,191.16,3.01]
[1755461229792,2.83,191.25,191.16,3.01]
[1755461230076,2.83,191.23,191.16,3.01]
[1755461230577,0.03316174,191.21,191.16,3.01]
[1755461230778,2.83,191.2,191.12,12.96675503]
[1755461230982,2.83,191.2,191.14,3.01]
[1755461232983,2.83,191.2,191.12,13.52]
[1755461233175,2.83,191.18,191.12,13.52]
[1755461233580,2.83,191.18,191.12,10.51]
[1755461233787,2.83,191.18,191.13,3.01]
[1755461234081,2.86489905,191.17,191.13,3.01]
[1755461234485,2.83,191.17,191.13,3.01]
[1755461234788,2.86511332,191.17,191.13,3.01]
[1755461235592,0.03511332,191.17,191.15,3.01]
[1755461236087,2.83,191.29,191.19,3.01]
[1755461236287,2.83,191.27,191.19,3.01]
[1755461236487,2.45675503,191.3,191.19,3.01]
[1755461236488,3.94381428,191.26,191.19,3.01]
[1755461236674,3.94381428,191.25,191.19,3.01]
[1755461236874,2.83,191.24,191.19,3.01]
[1755461237586,2.83,191.24,191.2,0.03355012]
[1755461237787,2.83,191.24,191.21,2.87]
[1755461239084,3.01,191.23,191.22,2.87]
[1755461239775,3.01,191.25,191.22,2.87]
[1755461239985,3.01,191.25,191.23,2.87]
[1755461240184,3.01,191.25,191.21,0.03657015]
[1755461240375,3.01,191.25,191.22,2.87]
[1755461240579,3.01,191.24,191.21,0.03657015]
[1755461240776,3.01,191.24,191.22,2.87]
[1755461240981,3.01,191.24,191.18,2.45675503]
[1755461241187,3.01,191.24,191.19,2.87]
[1755461241492,3.01,191.24,191.21,0.03331652]
[1755461241787,3.01,191.22,191.21,0.03331652]
[1755461242085,6.9579769,191.22,191.21,0.03331652]
[1755461244188,6.9579769,191.22,191.21,2.90331652]
[1755461244485,6.9579769,191.22,191.21,0.03331652]
[1755461250884,11.58839784,191.22,191.21,0.03331652]
[1755461252795,3.01,191.21,191.12,13.38]
[1755461252989,3.01,191.19,191.12,13.38]
[1755461253195,3.01,191.17,191.13,2.87]
[1755461253385,3.9479769,191.16,191.13,2.87]
[1755461253592,3.01,191.16,191.13,2.87]
[1755461254190,3.04935703,191.16,191.13,2.87]
[1755461254594,0.03935703,191.16,191.13,2.87]
[1755461255292,3.01,191.15,191.14,2.87]
[1755461256090,3.04935703,191.16,191.14,2.87]
[1755461256290,0.03935703,191.16,191.14,2.87]
[1755461258498,3.04935703,191.16,191.14,2.87]
[1755461260597,3.04935703,191.16,191.15,2.87]
[1755461264411,0.03935703,191.16,191.15,5.32675503]
[1755461266210,3.04935703,191.16,191.15,2.87]
[1755461266606,0.03935703,191.16,191.15,2.87]
[1755461269020,0.03935703,191.16,191.15,5.32675503]
[1755461273225,2.87935703,191.16,191.15,2.87]
[1755461276520,0.03935703,191.16,191.15,5.32675503]
[1755461279628,0.03935703,191.16,191.15,10.55495503]
[1755461280421,2.84,191.27,191.16,5.2279]
[1755461280632,2.84,191.25,191.19,2.82]
[1755461280828,6.79356466,191.24,191.19,2.82]
[1755461281029,3.95356466,191.23,191.19,2.82]
[1755461281325,2.84,191.26,191.22,2.82]
[1755461282328,2.84,191.31,191.22,2.82]
[1755461282530,2.84,191.29,191.22,2.82]
[1755461282728,8.58242517,191.28,191.22,2.82]
[1755461282925,3.95470446,191.27,191.22,2.82]
[1755461283126,2.84,191.25,191.24,0.0359208]
[1755461283924,6.794549,191.25,191.24,0.0359208]
[1755461286824,11.42287601,191.25,191.24,0.0359208]
[1755461287027,11.42287601,191.25,191.17,5.27675503]
[1755461287331,2.84,191.23,191.17,5.27675503]
[1755461287631,2.84,191.21,191.15,2.82]
[1755461288431,3.98005718,191.2,191.15,2.82]
[1755461288630,2.84,191.19,191.16,2.82]
[1755461288826,2.84,191.19,191.15,2.82]
[1755461289223,0.03592041,191.2,191.15,2.82]
[1755461289425,2.87592041,191.2,191.15,2.82]
[1755461289824,2.84,191.19,191.15,2.82]
[1755461290126,0.03592041,191.2,191.15,8.0482]
[1755461290336,0.03592041,191.2,191.14,2.45675503]
[1755461290337,0.03592041,191.2,191.18,2.82]
[1755461290725,2.84,191.28,191.18,2.82]
[1755461290921,2.84,191.26,191.18,2.82]
[1755461291122,0.03513657,191.21,191.18,2.82]
[1755461291527,2.84,191.21,191.2,2.82]
[1755461294633,0.03405811,191.22,191.17,9.32675503]
[1755461294634,2.87405811,191.22,191.21,2.82]
[1755461296933,0.03405811,191.22,191.21,2.82]
[1755461298235,2.8,191.3,191.21,2.82]
[1755461298438,2.8,191.28,191.25,3.07]
[1755461298835,2.8,191.27,191.26,3.07]
[1755461299037,351.36,191.32,191.24,2.45675503]
[1755461299233,2.8,191.26,191.25,3.07]
[1755461299635,2.8,191.27,191.26,3.07]
[1755461300032,2.8,191.28,191.27,3.07]
[1755461301039,2.8,191.28,191.24,2.49299963]
[1755461301540,2.8,191.28,191.25,3.07]
[1755461301942,2.8,191.28,191.26,3.07]
[1755461302238,2.8,191.27,191.26,3.07]
[1755461303843,2.8,191.31,191.26,3.07]
[1755461304043,2.8,191.29,191.24,0.0362446]
[1755461304239,2.8,191.29,191.27,3.07]
[1755461304940,2.8,191.28,191.27,3.07]
[1755461305340,351.36,191.32,191.25,3.07]
[1755461305541,2.8,191.3,191.24,0.0362446]
[1755461305732,2.8,191.28,191.26,3.07]
[1755461305932,2.8,191.27,191.26,3.07]
[1755461306542,2.8,191.27,191.24,3.1062446]
[1755461306743,3.93502096,191.26,191.24,0.0362446]
[1755461306944,2.8,191.25,191.24,0.0362446]
[1755461308144,6.73519385,191.25,191.24,0.0362446]
[1755461310749,6.73519385,191.25,191.24,3.1062446]
[1755461310942,3.93519385,191.25,191.24,3.1062446]
[1755461311150,6.73519385,191.25,191.24,3.1062446]
[1755461315247,6.73519385,191.25,191.24,0.0362446]
[1755461315952,6.73519385,191.25,191.24,3.1062446]
[1755461317350,351.36,191.32,191.24,3.1062446]
[1755461317550,140.5776232,191.31,191.24,3.1062446]
[1755461317757,2.8,191.29,191.24,3.1062446]
[1755461317955,6.7416916,191.28,191.24,3.1062446]
[1755461318255,2.8,191.28,191.24,3.1062446]
[1755461318854,2.8,191.3,191.24,3.1062446]
[1755461319054,6.74149385,191.29,191.24,3.1062446]
[1755461319250,3.94149385,191.28,191.24,3.1062446]
[1755461319454,2.8,191.29,191.24,3.1062446]
[1755461319654,3.94188087,191.28,191.24,3.1062446]
[1755461319851,2.8,191.31,191.24,2.49299963]
[1755461320056,8.61903368,191.3,191.25,3.07]
[1755461320257,3.94205646,191.29,191.25,5.2254]
[1755461320460,2.8,191.31,191.26,3.07]
[1755461320653,235.32003038,191.33,191.26,3.07]
[1755461320654,8.61970724,191.3,191.26,3.07]
[1755461320859,3.94236969,191.29,191.26,3.07]
[1755461321059,238.12003038,191.33,191.26,3.07]
[1755461321256,8.61887451,191.32,191.26,3.07]
[1755461321457,8.61887451,191.31,191.26,3.07]
[1755461321758,3.94222774,191.3,191.26,3.07]
[1755461321959,3.94222774,191.29,191.26,3.07]
[1755461322161,238.12003038,191.33,191.26,3.07]
[1755461322361,11.41964419,191.32,191.26,3.07]
[1755461322561,3.94256238,191.31,191.26,3.07]
[1755461322756,6.74256238,191.3,191.26,3.07]
[1755461322958,3.94256238,191.29,191.26,3.07]
[1755461323152,2.8,191.3,191.26,3.07]
[1755461323357,3.94277262,191.29,191.26,3.07]
[1755461323557,2.8,191.3,191.26,3.07]
[1755461323758,3.94241821,191.29,191.26,3.07]
[1755461323962,2.8,191.3,191.26,3.07]
[1755461324264,6.74241821,191.29,191.26,3.07]
[1755461324465,2.8,191.29,191.26,3.07]
[1755461324668,2.8,191.29,191.26,7.44]
[1755461324866,2.8,191.29,191.27,3.07]
[1755461325165,2.8,191.32,191.27,3.07]
[1755461325465,2.8,191.3,191.27,3.07]
[1755461325667,3.94150697,191.29,191.27,3.07]
[1755461325965,2.8,191.29,191.26,10.51]
[1755461326155,2.8,191.29,191.26,10.54784218]
[1755461326360,2.8,191.29,191.27,3.07]
[1755461326659,2.8,191.28,191.27,3.07]
[1755461334371,2.8,191.32,191.27,3.07]
[1755461334669,11.41163848,191.31,191.27,3.07]
[1755461334865,3.93986702,191.3,191.27,3.07]
[1755461335269,3.93986702,191.3,191.26,9.93459721]
[1755461335475,3.93986702,191.29,191.28,3.02]
[1755461335764,6.73986702,191.31,191.28,3.02]
[1755461335964,3.93986702,191.3,191.28,3.02]
[1755461337968,2.8,191.33,191.3,3.02]
[1755461338168,3.94298686,191.32,191.3,3.02]
[1755461338376,129.06,191.37,191.3,3.02]
[1755461338571,2.8,191.35,191.3,3.02]
[1755461338765,2.8,191.33,191.3,3.02]
[1755461338973,3.94296132,191.32,191.3,3.02]
[1755461339163,129.06,191.38,191.31,0.03322259]
[1755461339363,2.8,191.33,191.32,3.02]
[1755461339576,11.418816,191.33,191.32,3.02]
[1755461340270,8.618816,191.33,191.32,3.02]
[1755461340481,2.8,191.4,191.33,3.02]
[1755461341170,2.8,191.39,191.35,3.05370618]
[1755461344772,15.69,191.49,191.35,3.05370618]
[1755461344773,2.8,191.46,191.38,2.45675503]
[1755461344967,2.8,191.46,191.39,3.02]
[1755461345180,2.8,191.46,191.39,2.45675503]
[1755461345476,2.8,191.46,191.4,3.02]
[1755461345773,2.8,191.46,191.39,2.45675503]
[1755461345774,2.8,191.46,191.41,3.05871084]
[1755461345974,2.8,191.46,191.41,0.03871084]
[1755461348482,2.8,191.44,191.41,0.03871084]
[1755461348677,2.8,191.41,191.33,3.02]
[1755461348867,131.78,191.41,191.33,3.02]
[1755461349071,2.8,191.4,191.33,3.02]
[1755461349979,2.8,191.37,191.34,3.02]
[1755461350679,2.8,191.37,191.28,2.45675503]
[1755461350981,2.8,191.37,191.29,3.02]
[1755461351277,2.8,191.35,191.29,3.02]
[1755461351474,2.8,191.35,191.22,2.45675503]
[1755461351673,2.8,191.35,191.26,3.02]
[1755461351885,2.84011502,191.34,191.26,3.02]
[1755461354484,2.84011502,191.34,191.28,3.02]
[1755461355480,5.29687005,191.34,191.27,11.19]
[1755461355681,2.8,191.33,191.27,11.19]
[1755461357685,2.8,191.33,191.27,13.99]
[1755461358087,2.8,191.33,191.28,2.8]
[1755461358289,2.94,191.32,191.28,2.8]
[1755461358684,2.98011502,191.34,191.28,2.8]
[1755461358874,2.98011502,191.34,191.28,5.25675503]
[1755461359079,0.04011502,191.34,191.29,2.8]
[1755461359280,2.98011502,191.34,191.29,2.8]
[1755461361583,2.94,191.33,191.29,2.8]
[1755461364084,2.94,191.33,191.3,2.8]
[1755461365193,2.94,191.32,191.29,2.8]
[1755461367386,2.98011502,191.34,191.29,2.8]
[1755461367589,0.04011502,191.34,191.29,2.8]
[1755461367890,2.94,191.33,191.29,2.8]
[1755461368483,2.94,191.32,191.29,2.8]
[1755461369789,0.04011502,191.34,191.29,2.8]
[1755461370091,2.94,191.33,191.3,2.8]
[1755461375595,2.94,191.33,191.31,2.8]
[1755461376598,2.94,191.33,191.3,2.8]
[1755461376790,2.94,191.33,191.29,10.67]
[1755461376986,6.37561542,191.32,191.29,10.67]
[1755461377185,2.94,191.3,191.29,10.67]
[1755461377393,6.85886039,191.3,191.29,10.67]
[1755461378586,6.85886039,191.3,191.29,13.47]
[1755461378790,2.94,191.32,191.29,10.67]
[1755461379098,2.94,191.32,191.31,2.8]
[1755461379293,2.94,191.33,191.31,2.8]
[1755461379495,0.04011502,191.34,191.31,2.8]
[1755461379796,0.04011502,191.34,191.31,2.45675503]
[1755461379999,0.04011502,191.34,191.32,2.8]
[1755461381200,2.94,191.33,191.32,2.8]
[1755461381807,2.94,191.33,191.29,10.67]
[1755461382106,2.94,191.33,191.3,2.8]
[1755461382604,2.94,191.32,191.31,2.8]
[1755461383200,2.94,191.33,191.32,2.8]
[1755461384611,0.04011502,191.34,191.32,2.8]
[1755461384803,2.98011502,191.34,191.3,2.8]
[1755461386107,2.94,191.32,191.29,10.67]
[1755461386301,0.04011502,191.34,191.29,10.67]
[1755461386507,2.94,191.31,191.3,2.8]
[1755461386706,2.98011502,191.34,191.3,2.8]
[1755461386910,2.94,191.33,191.3,2.8]
[1755461387707,2.77,191.33,191.3,2.84]
[1755461389107,0.04011502,191.34,191.3,2.84]
[1755461390409,2.77,191.33,191.29,10.67]
[1755461390607,2.77,191.33,191.29,13.51]
[1755461390908,2.77,191.33,191.29,10.67]
[1755461391109,2.77,191.33,191.29,13.51]
[1755461391512,0.04011502,191.34,191.29,10.67]
[1755461391712,2.77,191.33,191.3,2.84]
[1755461391912,2.77,191.32,191.31,2.84]
[1755461392210,2.77,191.33,191.32,2.84]
[1755461392413,0.04011502,191.34,191.32,2.84]